bitfinex-derivatives/quotes_SOLF0:USTF0_20250529
["timestamp","ask_amount","ask_price","bid_price","bid_amount"]
[1748488492598,0.04310627,174.13,174.07,32.8]
[1748488493902,0.04310627,174.13,174.06,32.8]
[1748488494094,0.04310627,174.13,174.1,5.7421]
[1748488494399,0.04310627,174.13,174.06,32.8]
[1748488495897,0.04310627,174.13,174.12,5.7414]
[1748488496097,38.5396,174.18,174.11,32.78]
[1748488496495,5.7396,174.18,174.15,5.7403]
[1748488497001,5.7399,174.17,174.15,0.04159249]
[1748488497202,0.04149363,174.18,174.15,0.04159249]
[1748488499002,0.04149363,174.18,174.16,5.74]
[1748488499403,0.04149363,174.18,174.15,0.04159249]
[1748488499601,0.04149363,174.18,174.15,5.78169249]
[1748488499802,0.04149363,174.18,174.15,0.04159249]
[1748488500200,0.04149363,174.18,174.15,5.78189249]
[1748488500398,0.04149363,174.18,174.15,0.04159249]
[1748488501303,0.04149363,174.18,174.15,5.78189249]
[1748488501499,0.04149363,174.18,174.15,0.04159249]
[1748488501801,0.04149363,174.18,174.16,5.7399]
[1748488502006,5.7373,174.25,174.17,32.78]
[1748488502207,5.7373,174.25,174.18,1.9733]
[1748488502398,32.78,174.28,174.18,7.7125]
[1748488502598,5.7375,174.24,174.18,1.9733]
[1748488502798,5.7375,174.24,174.18,7.7125]
[1748488502998,0.03706239,174.23,174.19,0.04177668]
[1748488503200,5.7381,174.22,174.19,0.04177668]
[1748488503609,0.03706239,174.23,174.19,0.04177668]
[1748488503804,5.7382,174.22,174.19,0.04177668]
[1748488504004,0.03706239,174.23,174.19,0.04177668]
[1748488504508,5.7385,174.21,174.19,0.04177668]
[1748488507410,5.7388,174.2,174.19,0.04177668]
[1748488507811,5.7383,174.22,174.19,0.04177668]
[1748488508213,0.03706239,174.23,174.19,0.04177668]
[1748488508409,5.7386,174.21,174.19,0.04177668]
[1748488508610,0.03706239,174.23,174.19,0.04177668]
[1748488509816,5.77506239,174.23,174.19,0.04177668]
[1748488510119,0.03706239,174.23,174.19,0.04177668]
[1748488511613,5.77486239,174.23,174.19,0.04177668]
[1748488512514,5.7382,174.22,174.19,0.04177668]
[1748488513016,5.77496239,174.23,174.19,0.04177668]
[1748488513722,5.77496239,174.23,174.19,5.78077668]
[1748488515823,0.03706239,174.23,174.19,0.04177668]
[1748488516322,0.03706239,174.23,174.2,5.7387]
[1748488516520,0.03706239,174.23,174.19,0.04177668]
[1748488516715,0.03706239,174.23,174.2,5.7385]
[1748488517324,0.03706239,174.23,174.19,0.04177668]
[1748488517916,0.03706239,174.23,174.21,5.7382]
[1748488518826,0.03706239,174.23,174.22,5.7381]
[1748488519223,32.76,174.3,174.2,5.9091]
[1748488519915,32.76,174.3,174.24,5.7372]
[1748488520121,5.7364,174.28,174.25,0.04064856]
[1748488520416,0.04412653,174.29,174.25,0.04064856]
[1748488520922,5.7362,174.28,174.25,0.04064856]
[1748488521514,5.7365,174.27,174.25,0.04064856]
[1748488522320,5.7368,174.26,174.25,0.04064856]
[1748488522717,0.04412653,174.29,174.25,0.04064856]
[1748488522925,5.7365,174.27,174.25,0.04064856]
[1748488523119,0.04412653,174.29,174.25,0.04064856]
[1748488523725,5.7368,174.26,174.25,0.04064856]
[1748488532232,0.04412653,174.29,174.19,32.76]
[1748488532233,5.7386,174.21,174.19,32.76]
[1748488532625,5.7386,174.21,174.17,32.72]
[1748488532927,4.93519675,174.29,174.18,5.7394]
[1748488533226,5.7385,174.21,174.17,38.4597]
[1748488533627,5.7385,174.21,174.17,38.50282019]
[1748488533628,5.77516917,174.21,174.17,38.50282019]
[1748488534932,0.03666917,174.21,174.19,5.739]
[1748488535131,0.03666917,174.21,174.17,32.76312019]
[1748488535434,0.03666917,174.21,174.2,5.7388]
[1748488535628,32.72,174.29,174.17,32.76312019]
[1748488535826,32.72,174.29,174.17,32.72]
[1748488536134,5.7372,174.25,174.21,5.7382]
[1748488536328,5.7372,174.25,174.17,32.72]
[1748488536726,0.03623863,174.23,174.19,0.04022475]
[1748488537127,0.03623863,174.23,174.22,5.7381]
[1748488553443,32.72,174.29,174.2,5.8486]
[1748488554451,0.0394137,174.26,174.23,0.03977211]
[1748488556057,5.7763137,174.26,174.23,5.77737211]
[1748488556459,5.7763137,174.26,174.23,0.03977211]
[1748488558063,5.7763137,174.26,174.23,5.77757211]
[1748488558455,5.7763137,174.26,174.23,0.03977211]
[1748488559357,0.0394137,174.26,174.23,0.03977211]
[1748488559760,5.7375,174.24,174.23,0.00353348]
[1748488561265,0.0394137,174.26,174.23,0.00353348]
[1748488563362,0.0394137,174.26,174.24,5.7374]
[1748488563554,0.0394137,174.26,174.23,0.00353348]
[1748488563759,0.0394137,174.26,174.25,5.7371]
[1748488564065,32.66,174.33,174.23,4.93873023]
[1748488564258,32.66,174.33,174.24,3.9653]
[1748488564461,5.7354,174.31,174.26,5.7366]
[1748488564764,5.7354,174.31,174.24,3.9653]
[1748488564964,5.7356,174.3,174.26,5.7368]
[1748488565163,5.77422108,174.3,174.26,0.03936363]
[1748488565365,0.03862108,174.3,174.26,0.03936363]
[1748488566362,0.03862108,174.3,174.28,5.7359]
[1748488566562,0.03862108,174.3,174.26,0.03936363]
[1748488566764,0.03862108,174.3,174.27,32.66]
[1748488566966,0.03862108,174.3,174.29,5.7358]
[1748488568366,32.66,174.37,174.27,32.66]
[1748488568568,32.66,174.41,174.27,32.66]
[1748488568968,32.66,174.41,174.33,5.7344]
[1748488569266,32.66,174.41,174.27,32.66]
[1748488569267,5.7336,174.36,174.27,32.66]
[1748488569469,5.7336,174.36,174.32,5.7346]
[1748488569671,0.039883,174.33,174.32,5.7346]
[1748488569873,0.039883,174.33,174.3,0.03785398]
[1748488570465,0.039883,174.33,174.31,5.7352]
[1748488570664,0.039883,174.33,174.3,0.03785398]
[1748488570665,0.039883,174.33,174.32,32.66]
[1748488570865,0.039883,174.33,174.32,38.3948]
[1748488571269,32.66,174.41,174.32,32.66]
[1748488572174,0.03923303,174.38,174.35,0.04408048]
[1748488572566,0.03923303,174.38,174.35,5.77768048]
[1748488573367,0.03923303,174.38,174.35,0.04408048]
[1748488573763,5.77223303,174.38,174.35,0.04408048]
[1748488573965,0.03923303,174.38,174.35,0.04408048]
[1748488574874,0.03923303,174.38,174.36,5.7335]
[1748488575074,0.03923303,174.38,174.35,0.04408048]
[1748488575570,0.03923303,174.38,174.36,5.7335]
[1748488577569,0.03923303,174.38,174.35,0.04408048]
[1748488578678,0.03923303,174.38,174.36,5.7335]
[1748488579473,0.03923303,174.38,174.35,0.04408048]
[1748488579873,0.03923303,174.38,174.35,5.77768048]
[1748488579874,5.77213303,174.38,174.35,5.77768048]
[1748488580069,0.03923303,174.38,174.35,0.04408048]
[1748488581781,0.03923303,174.38,174.36,5.7335]
[1748488582475,0.03923303,174.38,174.35,0.04408048]
[1748488584879,5.7334,174.37,174.35,0.04408048]
[1748488585379,0.03923303,174.38,174.35,0.04408048]
[1748488585782,5.77213303,174.38,174.35,0.04408048]
[1748488585978,0.03923303,174.38,174.35,0.04408048]
[1748488586573,0.03923303,174.38,174.36,5.7332]
[1748488586772,0.03923303,174.38,174.35,0.04408048]
[1748488587477,0.03923303,174.38,174.36,5.7333]
[1748488587684,0.03923303,174.38,174.35,0.04408048]
[1748488587880,0.03923303,174.38,174.36,5.7335]
[1748488588078,0.03923303,174.38,174.35,0.04408048]
[1748488588474,0.03923303,174.38,174.37,5.7332]
[1748488589580,38.3907,174.45,174.35,0.04408048]
[1748488589983,38.3907,174.45,174.4,5.732]
[1748488590283,32.56,174.6,174.4,4.93519675]
[1748488590586,0.04251125,174.52,174.48,0.0440974]
[1748488590782,5.76895244,174.52,174.48,0.04293348]
[1748488591289,0.04045244,174.52,174.48,0.04293348]
[1748488591988,5.76875244,174.52,174.48,0.04293348]
[1748488592188,0.04045244,174.52,174.48,0.04293348]
[1748488592789,5.7292,174.49,174.48,0.04293348]
[1748488594489,5.7307,174.45,174.41,32.56]
[1748488595589,5.77457069,174.45,174.41,38.33040171]
[1748488595995,0.04387069,174.45,174.41,38.33030171]
[1748488596887,0.04387069,174.45,174.41,32.59850171]
[1748488597287,5.77467069,174.45,174.41,32.59850171]
[1748488598089,0.04387069,174.45,174.41,32.59850171]
[1748488598494,5.7312,174.44,174.41,32.59850171]
[1748488598691,5.7312,174.44,174.41,0.03850171]
[1748488598897,0.04387069,174.45,174.41,0.03850171]
[1748488599301,5.7312,174.44,174.41,0.03850171]
[1748488600200,0.04387069,174.45,174.41,0.03850171]
[1748488600902,0.04387069,174.45,174.42,32.56]
[1748488601693,0.04387069,174.45,174.41,0.03850171]
[1748488603395,0.04387069,174.45,174.42,5.7315]
[1748488604700,0.04387069,174.45,174.41,0.03850171]
[1748488605117,0.04387069,174.45,174.43,5.7312]
[1748488606606,0.04387069,174.45,174.44,5.7309]
[1748488606804,0.04387069,174.45,174.41,0.03850171]
[1748488608400,0.04387069,174.45,174.44,5.7309]
[1748488609210,0.04387069,174.45,174.41,0.03850171]
[1748488609912,0.04387069,174.45,174.42,5.7312]
[1748488610308,0.04387069,174.45,174.41,0.03850171]
[1748488610811,32.60387069,174.45,174.41,0.03850171]
[1748488611713,5.7313,174.43,174.41,0.03850171]
[1748488613611,5.7315,174.42,174.41,0.03850171]
[1748488614013,2.0532,174.44,174.3,2.0636]
[1748488614314,2.0532,174.44,174.35,5.7337]
[1748488614508,4.0455,174.44,174.35,5.7337]
[1748488614812,5.7323,174.4,174.35,5.7337]
[1748488615012,4.0455,174.44,174.36,5.7334]
[1748488615312,0.03629153,174.39,174.36,0.04294238]
[1748488615511,0.03629153,174.39,174.36,5.77644238]
[1748488616211,0.03629153,174.39,174.37,5.7331]
[1748488619312,0.03629153,174.39,174.36,5.77644238]
[1748488620010,0.03629153,174.39,174.36,0.04294238]
[1748488620719,5.7331,174.38,174.36,0.04294238]
[1748488620916,0.03629153,174.39,174.36,0.04294238]
[1748488621216,5.7332,174.38,174.36,0.04294238]
[1748488621904,5.76889153,174.39,174.36,0.04294238]
[1748488622109,0.03629153,174.39,174.36,0.04294238]
[1748488624116,0.03629153,174.39,174.38,5.7329]
[1748488624318,0.03629153,174.39,174.36,0.04294238]
[1748488624713,0.03629153,174.39,174.37,5.733]
[1748488625918,0.03629153,174.39,174.36,5.77644238]
[1748488626117,0.03629153,174.39,174.36,0.04294238]
[1748488627218,0.03629153,174.39,174.38,5.7329]
[1748488627519,0.03629153,174.39,174.36,0.04294238]
[1748488628119,0.03629153,174.39,174.36,5.77624238]
[1748488628514,0.03629153,174.39,174.36,0.04294238]
[1748488629221,0.03629153,174.39,174.37,5.7332]
[1748488631322,0.03629153,174.39,174.38,5.7329]
[1748488632926,32.5,174.44,174.36,0.04294238]
[1748488633126,5.7301,174.47,174.36,0.04294238]
[1748488633323,5.7301,174.47,174.35,4.93519675]
[1748488633528,32.5,174.48,174.43,5.7312]
[1748488634022,5.7726502,174.47,174.44,0.03827603]
[1748488634219,0.0426502,174.47,174.44,0.03827603]
[1748488634714,0.0426502,174.47,174.45,5.7304]
[1748488634920,0.0426502,174.47,174.44,0.03827603]
[1748488636118,0.0426502,174.47,174.46,5.7302]
[1748488636520,32.5,174.52,174.45,4.0253]
[1748488636720,32.5,174.56,174.45,6.0919]
[1748488637227,34.4193,174.6,174.47,4.93519675]
[1748488637425,0.04338255,174.55,174.52,0.03720321]
[1748488638131,0.04338255,174.55,174.53,5.7279]
[1748488638329,0.04338255,174.55,174.52,0.03720321]
[1748488638530,2.0195,174.66,174.52,0.03720321]
[1748488638725,32.48,174.66,174.54,4.93519675]
[1748488638923,32.48,174.66,174.55,36.5154]
[1748488639324,5.7244,174.64,174.59,5.7257]
[1748488639528,0.0377643,174.63,174.6,0.03675939]
[1748488639928,5.7626643,174.63,174.6,0.03675939]
[1748488640125,0.0377643,174.63,174.6,0.03675939]
[1748488641026,5.7626643,174.63,174.6,0.03675939]
[1748488641231,0.0377643,174.63,174.6,0.03675939]
[1748488643327,0.0377643,174.63,174.6,5.76205939]
[1748488644036,32.48,174.71,174.61,32.48]
[1748488644833,0.03918455,174.68,174.64,0.04305507]
[1748488646033,5.7238,174.66,174.64,0.04305507]
[1748488646332,0.03918455,174.68,174.64,0.04305507]
[1748488646529,5.7237,174.66,174.64,0.04305507]
[1748488646934,0.03918455,174.68,174.64,0.04305507]
[1748488647830,5.724,174.66,174.64,0.04305507]
[1748488648433,5.724,174.65,174.64,0.04305507]
[1748488654541,32.38,174.66,174.64,0.04305507]
[1748488654849,0.03918455,174.68,174.64,0.04305507]
[1748488655541,0.03918455,174.68,174.64,5.76735507]
[1748488656547,5.76228455,174.68,174.64,0.04305507]
[1748488656948,0.03918455,174.68,174.64,0.04305507]
[1748488657553,5.7239,174.66,174.64,0.04305507]
[1748488657746,0.03918455,174.68,174.64,0.04305507]
[1748488658552,4.93519675,174.66,174.56,32.38]
[1748488658856,32.38,174.65,174.51,32.38]
[1748488659256,32.38,174.65,174.54,5.7275]
[1748488659551,32.38,174.65,174.58,0.04284796]
[1748488659552,0.03650889,174.61,174.58,0.04284796]
[1748488661161,5.76180889,174.61,174.58,0.04284796]
[1748488661347,0.03650889,174.61,174.58,0.04284796]
[1748488662351,0.03650889,174.61,174.58,5.76904796]
[1748488663851,0.03650889,174.61,174.59,5.7259]
[1748488664656,0.03650889,174.61,174.6,5.7256]
[1748488669163,0.03650889,174.61,174.59,5.7257]
[1748488670057,0.03650889,174.61,174.58,0.04284796]
[1748488670058,0.03650889,174.61,174.6,5.7256]
[1748488670458,32.38,174.69,174.58,0.04284796]
[1748488670760,5.7241,174.65,174.61,5.7252]
[1748488671166,5.7238,174.66,174.62,5.7249]
[1748488671356,32.38,174.69,174.57,5.8897]
[1748488671553,0.04323934,174.66,174.62,0.03683067]
[1748488671766,5.7242,174.65,174.62,0.03683067]
[1748488672061,0.04323934,174.66,174.62,0.03683067]
[1748488672261,5.724,174.65,174.62,5.76163067]
[1748488672456,5.724,174.65,174.62,0.03683067]
[1748488672658,0.04323934,174.66,174.62,0.03683067]
[1748488672855,5.724,174.65,174.62,5.76173067]
[1748488673459,0.04323934,174.66,174.62,0.03683067]
[1748488674859,5.7247,174.63,174.62,0.03683067]
[1748488675261,32.38,174.64,174.56,32.38]
[1748488675564,32.38,174.64,174.55,5.7272]
[1748488676267,0.03713774,174.61,174.58,0.04188246]
[1748488677963,5.7256,174.6,174.58,0.04188246]
[1748488678558,5.726,174.59,174.58,0.04188246]
[1748488678859,0.03713774,174.61,174.53,32.38]
[1748488679167,5.7273,174.55,174.51,5.7284]
[1748488679567,32.28,174.59,174.49,32.28]
[1748488679867,0.03677745,174.56,174.52,0.04007303]
[1748488680665,5.7279,174.53,174.52,0.04007303]
[1748488681767,5.7293,174.49,174.45,5.7305]
[1748488681961,32.28,174.54,174.45,5.7305]
[1748488682163,32.28,174.54,174.43,32.28]
[1748488682865,0.03898316,174.5,174.47,0.03982216]
[1748488683261,5.76798316,174.5,174.47,0.03982216]
[1748488683460,0.03898316,174.5,174.47,0.03982216]
[1748488683969,5.7296,174.48,174.47,0.03982216]
[1748488684161,32.3,174.49,174.39,34.1928]
[1748488684360,5.7308,174.45,174.4,5.7322]
[1748488684564,32.3,174.49,174.39,34.1928]
[1748488685061,5.7302,174.46,174.4,5.732]
[1748488685268,0.04081258,174.45,174.41,0.03773399]
[1748488686068,5.77161258,174.45,174.41,0.03773399]
[1748488686265,0.04081258,174.45,174.41,0.03773399]
[1748488686769,0.04081258,174.45,174.42,5.7315]
[1748488686963,0.04081258,174.45,174.41,0.03773399]
[1748488687368,5.7313,174.43,174.41,0.03773399]
[1748488687970,5.731,174.44,174.41,0.03773399]
[1748488688173,32.3,174.44,174.41,0.03773399]
[1748488689071,5.7312,174.43,174.41,0.03773399]
[1748488689270,32.3,174.44,174.41,0.03773399]
[1748488689572,38.0311,174.44,174.41,0.03773399]
[1748488689772,32.3,174.44,174.41,0.03773399]
[1748488692373,38.0312,174.44,174.41,0.03773399]
[1748488693075,32.3,174.44,174.41,0.03773399]
[1748488694175,5.7314,174.43,174.41,0.03773399]
[1748488694473,32.3,174.44,174.41,0.03773399]
[1748488694675,5.7315,174.42,174.41,0.03773399]
[1748488695371,5.7313,174.43,174.41,0.03773399]
[1748488695574,32.3,174.44,174.41,0.03773399]
[1748488695775,5.7315,174.42,174.41,0.03773399]
[1748488696880,5.7313,174.43,174.41,0.03773399]
[1748488698076,5.7315,174.42,174.41,0.03773399]
[1748488700180,5.7313,174.43,174.41,0.03773399]
[1748488700580,32.3,174.44,174.41,0.03773399]
[1748488700783,0.04081258,174.45,174.41,0.03773399]
[1748488701380,0.04081258,174.45,174.42,5.7313]
[1748488701683,0.04081258,174.45,174.41,0.03773399]
[1748488701877,0.04081258,174.45,174.42,5.7315]
[1748488702679,0.04081258,174.45,174.41,5.76953399]
[1748488702874,0.04081258,174.45,174.41,0.03773399]
[1748488703180,0.04081258,174.45,174.41,5.76933399]
[1748488703381,0.04081258,174.45,174.41,0.03773399]
[1748488703683,0.04081258,174.45,174.41,5.76933399]
[1748488704079,0.04081258,174.45,174.41,0.03773399]
[1748488704783,5.77161258,174.45,174.41,0.03773399]
[1748488705078,5.77161258,174.45,174.41,5.76943399]
[1748488705483,5.7309,174.44,174.41,0.03773399]
[1748488707078,5.77141258,174.45,174.41,5.76963399]
[1748488707776,5.77141258,174.45,174.41,0.03773399]
[1748488708182,5.7309,174.44,174.41,0.03773399]
[1748488708377,0.04081258,174.45,174.41,0.03773399]
[1748488708781,5.7315,174.42,174.41,0.03773399]
[1748488712883,5.7332,174.38,174.35,36.3017]
[1748488713090,5.7332,174.38,174.35,4.0017]
[1748488713276,37.14857137,174.43,174.31,32.22]
[1748488713690,5.7338,174.36,174.31,32.22]
[1748488713891,0.04084936,174.35,174.32,0.03687807]
[1748488714188,0.03742415,174.35,174.32,0.03853697]
[1748488714790,5.7342,174.34,174.32,0.03853697]
[1748488715292,0.03742415,174.35,174.32,0.03853697]
[1748488715491,5.7345,174.33,174.32,0.03853697]
[1748488717091,5.7363,174.28,174.23,36.2006]
[1748488717283,32.22,174.33,174.23,36.2006]
[1748488717787,32.22,174.33,174.23,1.9949]
[1748488717986,5.7365,174.27,174.26,0.04379341]
[1748488720193,37.9762,174.28,174.26,0.04379341]
[1748488720394,32.24,174.28,174.26,0.04379341]
[1748488721487,5.7365,174.27,174.26,0.04379341]
[1748488723395,32.24,174.28,174.19,7.7304]
[1748488723396,5.7373,174.25,174.19,7.7304]
[1748488723587,32.24,174.28,174.19,7.7304]
[1748488723785,32.24,174.28,174.19,1.9915]
[1748488723993,5.7376,174.24,174.19,1.9915]
[1748488724186,32.24,174.28,174.19,1.9915]
[1748488724394,0.04111246,174.25,174.22,0.04383628]
[1748488725889,0.04111246,174.25,174.23,5.7376]
[1748488726297,0.04111246,174.25,174.24,5.7375]
[1748488726497,0.04111246,174.25,174.22,0.04383628]
[1748488726900,0.04111246,174.25,174.24,5.7375]
[1748488727691,32.24,174.28,174.25,5.737]
[1748488727895,32.24,174.28,174.23,1.9587]
[1748488728199,32.26,174.31,174.23,1.9587]
[1748488728395,5.7357,174.3,174.23,1.9587]
[1748488728797,0.03862032,174.28,174.25,5.7735346]
[1748488730204,0.03862032,174.28,174.25,0.0366346]
[1748488730902,0.03862032,174.28,174.26,5.7368]
[1748488731804,0.03862032,174.28,174.25,5.7737346]
[1748488732304,0.03862032,174.28,174.25,0.0366346]
[1748488733105,0.03862032,174.28,174.25,5.7737346]
[1748488733503,0.03862032,174.28,174.25,0.0366346]
[1748488735901,5.77482032,174.28,174.25,0.0366346]
[1748488736301,0.03862032,174.28,174.25,0.0366346]
[1748488738503,32.26,174.32,174.25,0.0366346]
[1748488739101,5.7352,174.31,174.27,5.7362]
[1748488739306,32.26,174.32,174.25,32.1766346]
[1748488739499,0.04017492,174.3,174.27,5.7362]
[1748488740199,0.04017492,174.3,174.25,0.0366346]
[1748488741202,5.7368,174.26,174.25,0.0366346]
[1748488745000,32.14,174.27,174.16,36.0339]
[1748488745001,5.7385,174.21,174.16,36.0339]
[1748488745210,32.14,174.27,174.16,36.0339]
[1748488745413,1.9059,174.26,174.16,36.0339]
[1748488745608,5.7392,174.19,174.16,3.8939]
[1748488745911,1.9059,174.26,174.16,3.8939]
[1748488746208,0.04077215,174.23,174.19,0.0405791]
[1748488746805,5.7388,174.2,174.19,0.0405791]
[1748488751706,32.14,174.22,174.19,0.0405791]
[1748488752115,5.7404,174.16,174.08,32.14]
[1748488752506,32.16,174.17,174.1,5.742]
[1748488752702,5.7405,174.15,174.08,32.14]
[1748488752914,32.16,174.17,174.08,32.14]
[1748488753113,32.16,174.17,174.11,0.04096141]
[1748488753309,0.04110235,174.14,174.11,0.04096141]
[1748488755807,5.78190235,174.14,174.11,0.04096141]
[1748488756305,0.04110235,174.14,174.11,0.04096141]
[1748488757516,0.04110235,174.14,174.12,5.7411]
[1748488757812,0.04110235,174.14,174.11,0.04096141]
[1748488758615,32.16,174.21,174.11,0.04096141]
[1748488758810,32.16,174.22,174.14,5.7405]
[1748488759018,32.16,174.22,174.15,1.9618]
[1748488759217,5.7395,174.18,174.15,1.9618]
[1748488759417,5.7395,174.18,174.15,7.7022]
[1748488759621,5.78079058,174.18,174.15,7.7399019]
[1748488759916,5.78079058,174.18,174.15,1.9995019]
[1748488761920,0.04129058,174.18,174.15,7.7398019]
[1748488762514,5.78069058,174.18,174.15,1.9995019]
[1748488762910,0.04129058,174.18,174.15,1.9995019]
[1748488764514,32.16,174.22,174.15,1.9995019]
[1748488764819,6.84783613,174.26,174.15,1.9995019]
[1748488764820,32.16,174.26,174.16,2.0185]
[1748488765312,5.7377,174.24,174.19,5.7391]
[1748488765517,495.68,174.31,174.2,0.0390543]
[1748488765518,0.03627215,174.23,174.2,0.0390543]
[1748488765817,0.0417377,174.23,174.2,0.04344008]
[1748488766409,32.16,174.3,174.2,0.04344008]
[1748488766916,37.8955,174.3,174.25,5.7368]
[1748488767113,37.8955,174.3,174.18,32.16]
[1748488767312,32.16,174.3,174.18,32.16]
[1748488767518,5.7344,174.34,174.22,0.03681951]
[1748488767817,32.16,174.36,174.23,32.16]
[1748488768118,32.16,174.36,174.24,35.9147]
[1748488768620,0.04200445,174.32,174.28,0.04106623]
[1748488769014,5.77690445,174.32,174.28,0.04106623]
[1748488770117,5.7352,174.31,174.28,0.04106623]
[1748488771819,5.7356,174.3,174.28,0.04106623]
[1748488772025,0.04200445,174.32,174.28,0.04106623]
[1748488772519,5.7358,174.3,174.28,0.04106623]
[1748488772715,0.04200445,174.32,174.28,0.04106623]
[1748488772920,5.7358,174.29,174.28,0.04106623]
[1748488774823,0.04200445,174.32,174.28,0.04106623]
[1748488776120,32.04,174.31,174.28,0.04106623]
[1748488776518,5.7358,174.29,174.28,0.04106623]
[1748488790133,5.7378,174.23,174.2,33.9589]
[1748488790335,4.93871069,174.29,174.18,3.8134]
[1748488790833,5.7384,174.21,174.18,3.8134]
[1748488791235,5.77607472,174.21,174.18,3.84994149]
[1748488791736,5.7388,174.2,174.18,3.84994149]
[1748488792140,5.7388,174.2,174.18,1.92174149]
[1748488792735,0.03767472,174.21,174.18,1.92174149]
[1748488792736,5.7391,174.19,174.18,0.03654149]
[1748488794641,37.81617472,174.21,174.18,0.03654149]
[1748488795237,5.77617472,174.21,174.18,0.03654149]
[1748488796042,5.7388,174.2,174.18,0.03654149]
[1748488797750,0.03767472,174.21,174.18,5.77594149]
[1748488798241,0.03767472,174.21,174.19,5.7389]
[1748488798647,0.03767472,174.21,174.18,0.03654149]
[1748488799444,495.74,174.28,174.19,5.739]
[1748488799643,31.96,174.27,174.13,3.9568]
[1748488799848,5.7373,174.25,174.21,5.7382]
[1748488800448,5.77980211,174.25,174.21,5.77642231]
[1748488801251,0.04250211,174.25,174.21,5.77642231]
[1748488801554,0.04250211,174.25,174.21,0.03822231]
[1748488801749,5.7377,174.24,174.21,0.03822231]
[1748488801945,0.04250211,174.25,174.21,0.03822231]
[1748488802750,0.04250211,174.25,174.21,5.77642231]
[1748488802951,0.04250211,174.25,174.21,0.03822231]
[1748488803349,0.04250211,174.25,174.22,5.7378]
[1748488803652,0.04250211,174.25,174.21,0.03822231]
[1748488804352,0.04250211,174.25,174.23,5.7375]
[1748488804552,0.04250211,174.25,174.21,0.03822231]
[1748488806050,0.04250211,174.25,174.22,5.7378]
[1748488806252,0.04250211,174.25,174.21,0.03822231]
[1748488806452,0.04250211,174.25,174.23,5.7377]
[1748488807147,0.04250211,174.25,174.24,5.7374]
[1748488807542,31.96,174.31,174.22,35.9005]
[1748488807840,31.96,174.31,174.27,5.7362]
[1748488808340,31.96,174.31,174.22,37.8035]
[1748488808549,0.04159848,174.28,174.25,0.04197897]
[1748488808746,0.04159848,174.28,174.27,5.7364]
[1748488817561,37.694,174.35,174.25,0.04197897]
[1748488817860,31.96,174.35,174.25,0.04197897]
[1748488818557,0.03819564,174.32,174.3,5.7352]
[1748488819057,31.96,174.4,174.29,0.03646452]
[1748488819253,31.96,174.4,174.27,31.96]
[1748488819764,5.7335,174.36,174.32,5.7345]
[1748488820154,0.04002423,174.36,174.32,0.04344222]
[1748488820856,5.7345,174.33,174.32,0.04344222]
[1748488821762,31.96,174.35,174.32,0.04344222]
[1748488821964,0.04002423,174.36,174.32,0.04344222]
[1748488822459,0.04002423,174.36,174.32,5.77824222]
[1748488822664,0.04002423,174.36,174.32,0.04344222]
[1748488822859,5.77352423,174.36,174.32,5.77814222]
[1748488823163,5.77352423,174.36,174.32,0.04344222]
[1748488823456,0.04002423,174.36,174.33,5.7345]
[1748488823863,0.04002423,174.36,174.33,5.7344]
[1748488824066,0.04002423,174.36,174.32,0.04344222]
[1748488824566,0.04002423,174.36,174.34,5.7339]
[1748488828160,0.04002423,174.36,174.33,5.7344]
[1748488828556,0.04002423,174.36,174.32,0.04344222]
[1748488829068,0.04002423,174.36,174.33,5.7343]
[1748488829671,0.04002423,174.36,174.34,5.7341]
[1748488829859,0.04002423,174.36,174.32,0.04344222]
[1748488830762,0.04002423,174.36,174.24,31.86]
[1748488830962,3.5786,174.37,174.24,31.86]
[1748488831173,4.93871069,174.34,174.24,31.86]
[1748488831468,31.86,174.33,174.24,31.86]
[1748488831666,5.7780932,174.3,174.27,0.04155081]
[1748488831871,0.0422932,174.3,174.27,0.04155081]
[1748488832969,5.7358,174.29,174.27,0.04155081]
[1748488833771,0.0422932,174.3,174.27,0.04155081]
[1748488834170,0.0422932,174.3,174.27,5.77785081]
[1748488834674,0.0422932,174.3,174.19,5.7389]
[1748488834865,4.93871069,174.31,174.16,1.9235]
[1748488835672,0.04004953,174.25,174.23,5.7377]
[1748488835868,0.03817297,174.26,174.22,0.03758735]
[1748488836274,5.7372,174.25,174.22,0.03758735]